{"text_format":"1","workbook":"xlsx","n_sheets":2,"sheets":["BID FORM \"A\" - 548 Days","BID FORM \"B\" - 730 Days"],"not_rendered":{"charts":0,"images":0,"macros":0,"external_links":0,"defined_names":2,"comments":0,"pivot_tables":0},"unopened":[],"bounds":{"document_bytes":16777216,"sheet_cells":100000,"rows_first":2000,"rows_last":500,"rows_between":2000,"halvings":0,"cell_chars":16384,"cell_head_chars":4096},"cells_cut":0,"cells_raw":0,"read":"whole","date_system":"1900"}

{"sheet":"BID FORM \"A\" - 548 Days","index":0,"n_rows":33,"n_cols":6,"rows_kept":33,"cut":false,"hidden":false,"merged":[[29,0,29,3],[30,1,30,3],[31,1,31,3],[32,1,32,3],[0,1,0,5],[1,1,1,5],[3,1,3,5],[18,0,18,3],[2,0,2,5],[4,0,4,5],[5,0,5,5]]}
[null,"BID FORM A"]
[null,"(Submit in Duplicate)"]
["SWWRF NEW HEADWORKS AND CCC REHABILITATION AND RECHARGE WELL PUMP STATION"]
[null,"Bid \"A\" Based on Completion Time of 548 Calendar Days"]
[]
["Bidders must provide prices for each line item for their bid to be considered responsive."]
["Bid Item No.","Description","Unit","Qty","Unit Price($)","Total Amount ($)"]
["A ","NEW HEADWORKS - PROJECT NO. 6083381"]
["A1","Mobilization/Demobilization (Includes both projects)","LS",1,null,{"$f":"SUM(D9*E9)","v":0}]
["A2","Civil Improvements","LS",1,null,{"$f":"SUM(D10*E10)","v":0}]
["A3","Yard Piping","LS",1,null,0]
["A4","Structural","LS",1,null,0]
["A5","Mechanical","LS",1,null,0]
["A6","Electrical ","LS",1,null,0]
["A7","Instrumental and Controls ","LS",1,null,0]
["A8","Demolition","LS",1,null,0]
["A9","Utility Relocation","LF",1300,null,0]
["A10","Building Permit","LS",1,5000,5000]
["SUBTOTAL AMOUNT OF BID FOR PAY ITEMS A1 THROUGH A10- NEW HEADWORKS ",null,null,null,null,{"$f":"SUM(F9:F18)","v":5000}]
[]
["Pay Item No.","Description","Unit","Qty","Unit Price($)","Total Amount ($)"]
["B","CCC REHABILITATION AND RECHARGE WELL PUMP STATION - PROJECT NO. 6091780"]
["B1","Civil Improvements","LS",1,null,{"$f":"SUM(D23*E23)","v":0}]
["B2","Yard Piping","LS",1,null,{"$f":"SUM(D24*E24)","v":0}]
["B3","Structural","LS",1,null,0]
["B4","Mechanical","LS",1,null,0]
["B5","Electrical ","LS",1,null,0]
["B6","Instrumental and Controls ","LS",1,null,0]
["B7","Demolition","LS",1,null,0]
["SUBTOTAL AMOUNT FOR PAY ITEMS B1 THROUGH B7 - CCC REHAB AND RECHARGE WELL PUMP STATION ",null,null,null,null,{"$f":"SUM(F23:F29)","v":0}]
[null,"TOTAL BASE BID - Based on Completion Time of 548 Calendar Days",null,null,null,{"$f":"SUM(F19,F30)","v":5000}]
[null,"Contract Contingency Work   (Used only with County Approval)",null,null,"10% of TOTAL BASE BID",{"$f":"SUM(F31*10%)","v":500}]
[null,"TOTAL OFFER FOR BID with Contract Contingency (Based on Completion Time of 548 Calendar Days) ",null,null,null,{"$f":"SUM(F31,F32)","v":5500}]

{"sheet":"BID FORM \"B\" - 730 Days","index":1,"n_rows":33,"n_cols":6,"rows_kept":33,"cut":false,"hidden":false,"merged":[[29,0,29,3],[30,1,30,3],[31,1,31,3],[32,1,32,3],[0,1,0,5],[2,0,2,5],[3,1,3,5],[4,0,4,5],[18,0,18,3],[1,1,1,5],[5,0,5,5]]}
[null,"BID FORM B"]
[null,"(Submit in Duplicate)"]
["SWWRF NEW HEADWORKS AND CCC REHABILITATION AND RECHARGE WELL PUMP STATION"]
[null,"Bid \"B\" Based on Completion Time of 730 Calendar Days"]
[]
["Bidders must provide prices for each line item for their bid to be considered responsive."]
["Bid Item No.","Description","Unit","Qty","Unit Price($)","Total Amount ($)"]
["A ","NEW HEADWORKS - PROJECT NO. 6083381"]
["A1","Mobilization/Demobilization (Includes both projects)","LS",1,null,{"$f":"SUM(D9*E9)","v":0}]
["A2","Civil Improvements","LS",1,null,{"$f":"SUM(D10*E10)","v":0}]
["A3","Yard Piping","LS",1,null,0]
["A4","Structural","LS",1,null,0]
["A5","Mechanical","LS",1,null,0]
["A6","Electrical ","LS",1,null,0]
["A7","Instrumental and Controls ","LS",1,null,0]
["A8","Demolition","LS",1,null,0]
["A9","Utility Relocation","LF",1300,null,0]
["A10","Building Permit","LS",1,5000,5000]
["SUBTOTAL AMOUNT OF BID FOR PAY ITEMS A1 THROUGH A10- NEW HEADWORKS ",null,null,null,null,{"$f":"SUM(F9:F18)","v":5000}]
[]
["Pay Item No.","Description","Unit","Qty","Unit Price($)","Total Amount ($)"]
["B","CCC REHABILITATION AND RECHARGE WELL PUMP STATION - PROJECT NO. 6091780"]
["B1","Civil Improvements","LS",1,null,{"$f":"SUM(D23*E23)","v":0}]
["B2","Yard Piping","LS",1,null,{"$f":"SUM(D24*E24)","v":0}]
["B3","Structural","LS",1,null,0]
["B4","Mechanical","LS",1,null,0]
["B5","Electrical ","LS",1,null,0]
["B6","Instrumental and Controls ","LS",1,null,0]
["B7","Demolition","LS",1,null,0]
["SUBTOTAL AMOUNT FOR PAY ITEMS B1 THROUGH B7 - CCC REHAB AND RECHARGE WELL PUMP STATION ",null,null,null,null,{"$f":"SUM(F23:F29)","v":0}]
[null,"TOTAL BASE BID - Based on Completion Time of 730 Calendar Days",null,null,null,{"$f":"SUM(F19,F30)","v":5000}]
[null,"CONTRACT CONTINGENCY WORK   (Used only with County Approval)",null,null,"10% of TOTAL BASE BID",{"$f":"SUM(F31*10%)","v":500}]
[null,"TOTAL OFFER FOR BID with Contract Contingency (Based on Completion Time of 730 Calendar Days) ",null,null,null,{"$f":"SUM(F31,F32)","v":5500}]